bitfinex/quotes_BTCUSD_20241011
["timestamp","ask_amount","ask_price","bid_price","bid_amount"]
[1728677390468,0.000821,63029.0,63028.0,0.66359562]
[1728677390701,0.000821,63029.0,63028.0,0.62260155]
[1728677391170,0.000821,63029.0,63028.0,0.62460155]
[1728677391423,0.000821,63029.0,63028.0,0.63860155]
[1728677391660,0.000821,63029.0,63028.0,0.65260155]
[1728677392812,0.000821,63029.0,63028.0,0.63860155]
[1728677393027,0.001821,63029.0,63028.0,0.65060155]
[1728677394697,0.001821,63029.0,63028.0,0.69800619]
[1728677395335,0.001821,63029.0,63028.0,0.69801253]
[1728677395724,0.001821,63029.0,63028.0,0.94621079]
[1728677395928,0.001821,63029.0,63028.0,0.70007241]
[1728677396138,0.001821,63029.0,63028.0,0.77118889]
[1728677396548,0.001821,63029.0,63028.0,0.94622504]
[1728677396955,0.001821,63029.0,63028.0,0.94822504]
[1728677397981,0.001821,63029.0,63028.0,0.97612267]
[1728677398187,0.001821,63029.0,63028.0,1.09465014]
[1728677398766,0.001821,63029.0,63028.0,0.97612267]
[1728677399181,0.000821,63029.0,63028.0,0.94112267]
[1728677399560,0.001821,63029.0,63028.0,0.96012267]
[1728677399959,0.000821,63029.0,63028.0,0.94812267]
[1728677400449,0.001821,63029.0,63028.0,0.95512267]
[1728677400654,0.001821,63029.0,63028.0,0.87367988]
[1728677400864,0.001821,63029.0,63028.0,0.97269399]
[1728677401276,0.001821,63029.0,63028.0,0.85410856]
[1728677401689,0.001821,63029.0,63028.0,0.97270718]
[1728677401897,0.001821,63029.0,63028.0,0.85410856]
[1728677402101,0.001821,63029.0,63028.0,0.97270961]
[1728677403381,0.001821,63029.0,63028.0,0.85410856]
[1728677405071,0.001821,63029.0,63028.0,0.85429116]
[1728677405759,0.001821,63029.0,63028.0,0.85629116]
[1728677408033,0.001821,63029.0,63028.0,0.85644352]
[1728677408284,0.001821,63029.0,63028.0,0.85444352]
[1728677408659,0.001821,63029.0,63028.0,0.99696734]
[1728677408859,0.001821,63029.0,63028.0,0.99896734]
[1728677409346,0.001821,63029.0,63028.0,0.85644352]
[1728677409525,0.001821,63029.0,63028.0,0.99896734]
[1728677410528,0.001821,63029.0,63028.0,0.85644352]
[1728677412848,0.001821,63029.0,63028.0,0.85672571]
[1728677413082,0.000821,63029.0,63028.0,0.84772571]
[1728677414521,0.000821,63029.0,63028.0,0.85472571]
[1728677414922,0.000821,63029.0,63028.0,0.84772571]
[1728677415101,0.000821,63029.0,63028.0,0.85272571]
[1728677416732,0.000821,63029.0,63028.0,0.85472571]
[1728677418790,0.000821,63029.0,63028.0,0.85772571]
[1728677419391,0.000821,63029.0,63028.0,0.84972571]
[1728677419603,0.000821,63029.0,63028.0,1.05873982]
[1728677419801,0.000821,63029.0,63028.0,1.26952378]
[1728677420460,0.000821,63029.0,63028.0,1.08173982]
[1728677420653,0.000821,63029.0,63028.0,1.08973982]
[1728677422398,0.000821,63029.0,63028.0,1.08971602]
[1728677422781,0.000821,63029.0,63028.0,0.99070191]
[1728677426565,0.000821,63029.0,63028.0,1.08971602]
[1728677429286,0.28653948,63046.0,63044.0,0.005]
[1728677429534,0.28653948,63046.0,63045.0,0.60160575]
[1728677429752,0.23664158,63046.0,63045.0,0.48273047]
[1728677429967,0.0932,63047.0,63045.0,0.33491052]
[1728677430189,0.0932,63047.0,63046.0,0.50575872]
[1728677430398,0.0994,63051.0,63046.0,0.34402862]
[1728677430603,0.0994,63051.0,63050.0,0.158604]
[1728677432145,0.0994,63051.0,63050.0,0.159604]
[1728677432761,0.0994,63051.0,63050.0,0.161604]
[1728677433413,0.0994,63051.0,63050.0,0.16567737]
[1728677433943,0.336901,63051.0,63050.0,0.00707337]
[1728677434181,0.59713912,63051.0,63050.0,0.00707337]
[1728677434394,0.158635,63038.0,63034.0,0.0475333]
[1728677434613,0.63446,63046.0,63033.0,0.39528758]
[1728677434614,0.1751,63037.0,63033.0,0.28417488]
[1728677434822,0.1751,63037.0,63035.0,0.00680388]
[1728677435030,0.1751,63037.0,63036.0,0.158639]
[1728677435238,0.1751,63037.0,63036.0,0.00679324]
[1728677435795,0.1751,63037.0,63036.0,0.158639]
[1728677436004,0.1751,63037.0,63036.0,0.00679324]
[1728677436464,0.1753,63037.0,63036.0,0.02079324]
[1728677436666,0.1753,63037.0,63036.0,0.014]
[1728677436861,0.1753,63037.0,63036.0,0.172639]
[1728677437070,0.1753,63037.0,63036.0,0.02493706]
[1728677437269,0.1753,63037.0,63036.0,0.18357606]
[1728677437894,0.1753,63037.0,63036.0,0.19557606]
[1728677439502,0.0964,63037.0,63036.0,0.19557606]
[1728677439677,0.0002,63037.0,63036.0,0.19557606]
[1728677443408,0.0002,63037.0,63036.0,0.24310936]
[1728677443629,0.0002,63037.0,63036.0,0.40433337]
[1728677443831,0.0002,63037.0,63036.0,0.63124258]
[1728677444034,0.0002,63037.0,63036.0,0.6273091]
[1728677444232,0.0493117,63046.0,63043.0,0.158621]
[1728677444233,0.04855355,63046.0,63043.0,0.158621]
[1728677444443,0.04855355,63046.0,63044.0,0.158617]
[1728677444647,0.0957,63047.0,63044.0,0.16942871]
[1728677445054,0.0957,63047.0,63044.0,0.01081171]
[1728677445459,0.0957,63047.0,63044.0,0.01481171]
[1728677445661,0.0957,63047.0,63044.0,0.04205639]
[1728677445873,0.0957,63047.0,63044.0,0.01081171]
[1728677446689,0.0957,63047.0,63044.0,0.01381171]
[1728677447093,0.0957,63047.0,63044.0,0.01581171]
[1728677449592,0.158614,63046.0,63044.0,0.01581171]
[1728677449797,0.158616,63045.0,63044.0,0.005]
[1728677450010,0.158615,63046.0,63044.0,0.005]
[1728677450477,0.148615,63046.0,63044.0,0.005]
[1728677451115,0.0957,63047.0,63037.0,0.001642]
[1728677451339,0.39722,63048.0,63038.0,0.20290734]
[1728677451340,0.0979,63043.0,63038.0,0.20290734]
[1728677451574,0.0979,63043.0,63038.0,0.05517906]
[1728677451805,0.0979,63043.0,63039.0,0.158631]
[1728677453000,0.0979,63043.0,63038.0,0.05517906]
[1728677453257,0.0979,63043.0,63039.0,0.013]
[1728677453543,0.0979,63043.0,63039.0,0.171631]
[1728677453755,0.0979,63043.0,63040.0,0.00412368]
[1728677454445,0.0979,63043.0,63041.0,0.00674007]
[1728677455727,0.0979,63043.0,63041.0,0.01374007]
[1728677456656,0.0979,63043.0,63041.0,0.01974007]
[1728677457155,0.0979,63043.0,63042.0,0.158624]
[1728677457380,0.0979,63043.0,63042.0,0.00411362]
[1728677458436,0.0979,63043.0,63042.0,0.01111362]
[1728677458911,0.0979,63043.0,63042.0,0.01711362]
[1728677462526,0.0979,63043.0,63042.0,0.17573762]
[1728677463919,0.159432,63047.0,63042.0,0.17573762]
[1728677463920,0.000821,63047.0,63046.0,0.158614]
[1728677464132,0.000821,63046.0,63042.0,0.01711362]
[1728677464339,0.000821,63046.0,63045.0,0.158615]
[1728677464541,0.000821,63046.0,63045.0,0.19854825]
[1728677465635,0.000821,63046.0,63045.0,0.20572044]
[1728677466395,0.000821,63046.0,63045.0,0.28102044]
[1728677466549,0.000821,63046.0,63045.0,0.52766727]
[1728677466785,0.000821,63046.0,63045.0,0.55824262]
[1728677467052,0.000821,63046.0,63045.0,0.35610512]
[1728677467305,0.000821,63046.0,63045.0,0.5314662]
[1728677467558,0.000821,63046.0,63045.0,0.5097219]
[1728677467805,0.000821,63046.0,63045.0,0.60471692]
[1728677468053,0.000821,63046.0,63045.0,0.60181544]
[1728677468297,0.000821,63046.0,63045.0,0.60781544]
[1728677468551,0.000821,63046.0,63045.0,0.61881544]
[1728677468797,0.000821,63046.0,63045.0,0.29294677]
[1728677469067,0.000821,63046.0,63045.0,0.2961186]
[1728677469284,0.000821,63046.0,63045.0,0.55270119]
[1728677469528,0.000821,63046.0,63045.0,0.38089284]
[1728677469796,0.000821,63046.0,63045.0,0.3096443]
[1728677470006,0.000821,63046.0,63045.0,0.31281613]
[1728677471279,0.000821,63046.0,63045.0,0.3096443]
[1728677471802,0.000821,63046.0,63045.0,0.31281613]
[1728677472504,0.000821,63046.0,63045.0,0.31037108]
[1728677473200,0.000821,63046.0,63045.0,0.26171105]
[1728677473410,0.000821,63046.0,63045.0,0.31236965]
[1728677474415,0.000821,63046.0,63045.0,0.31036965]
[1728677474965,0.000821,63046.0,63045.0,0.28619782]
[1728677475167,0.000821,63046.0,63045.0,0.29219782]
[1728677475354,0.000821,63046.0,63045.0,0.29236965]
[1728677475555,0.000821,63046.0,63045.0,0.28619782]
[1728677475756,0.000821,63046.0,63045.0,0.30019782]
[1728677475965,0.000821,63046.0,63045.0,0.31636966]
[1728677476658,0.000821,63046.0,63045.0,0.33291193]
[1728677477105,0.000821,63046.0,63045.0,0.28542516]
[1728677479095,0.000821,63046.0,63045.0,0.18641105]
[1728677479311,0.000821,63046.0,63045.0,0.28542516]
[1728677494166,0.000821,63046.0,63045.0,0.33293262]
[1728677497636,0.000821,63046.0,63045.0,0.28542516]
[1728677497838,0.000821,63046.0,63045.0,0.18641105]
[1728677498053,0.000821,63046.0,63045.0,0.23392534]
[1728677498880,0.000821,63046.0,63045.0,0.23556734]
[1728677499305,0.000821,63046.0,63045.0,0.18805305]
[1728677500655,0.000821,63046.0,63045.0,0.23762979]
[1728677501662,0.000821,63046.0,63045.0,0.30889099]
[1728677502533,0.000821,63046.0,63045.0,0.48436004]
[1728677503753,0.8274147,63046.0,63045.0,0.1365551]
[1728677504083,0.59077312,63046.0,63045.0,0.03943805]
[1728677504524,0.49175901,63046.0,63045.0,0.001642]
[1728677504931,0.59077312,63046.0,63045.0,0.012642]
[1728677505137,0.59077312,63046.0,63045.0,0.001642]
[1728677505544,0.59077312,63046.0,63045.0,0.005642]
[1728677505746,0.59077312,63046.0,63045.0,0.016642]
[1728677506350,0.59077312,63046.0,63045.0,0.005642]
[1728677506554,0.59077312,63046.0,63045.0,0.008642]
[1728677518512,0.33314501,63046.0,63045.0,0.008642]
[1728677518732,0.49175901,63046.0,63045.0,0.008642]
[1728677519204,0.171921,63046.0,63045.0,0.008642]
[1728677519405,0.000821,63046.0,63045.0,0.167258]
[1728677519791,0.000821,63046.0,63045.0,0.17805405]
[1728677520210,0.000821,63046.0,63045.0,0.17505405]
[1728677520437,0.000821,63046.0,63045.0,0.17105405]
[1728677520627,0.000821,63046.0,63045.0,0.18405405]
[1728677521945,0.41967312,63046.0,63045.0,0.02543805]
[1728677522386,0.41967312,63046.0,63045.0,0.014642]
[1728677524276,0.51937312,63046.0,63045.0,0.014642]
[1728677524690,0.82188723,63046.0,63045.0,0.014642]
[1728677524885,0.82188723,63046.0,63045.0,0.001642]
[1728677524886,0.82388723,63046.0,63045.0,0.001642]
[1728677525094,0.82388723,63046.0,63045.0,0.004642]
[1728677525293,0.82388723,63046.0,63045.0,0.008642]
[1728677525793,0.82388723,63046.0,63042.0,0.001642]
[1728677525794,0.66184922,63043.0,63042.0,0.001642]
[1728677526000,0.87044712,63043.0,63042.0,0.001642]
[1728677526206,0.98444294,63043.0,63042.0,0.001642]
[1728677526422,1.00927918,63043.0,63042.0,0.001642]
[1728677526672,1.00927918,63043.0,63037.0,0.001642]
[1728677526673,0.440834,63038.0,63037.0,0.001642]
[1728677526947,0.77220482,63038.0,63037.0,0.001642]
[1728677528172,0.77520482,63038.0,63037.0,0.002642]
[1728677528373,0.93657453,63038.0,63037.0,0.002642]
[1728677529132,0.77520482,63038.0,63037.0,0.002642]
[1728677529288,0.77620482,63038.0,63037.0,0.003642]
[1728677535415,0.14714681,63027.0,63015.0,0.160334]
[1728677535653,0.158669,63024.0,63015.0,0.160334]
[1728677535888,0.158669,63024.0,63021.0,0.001642]
[1728677535889,0.31989301,63024.0,63021.0,0.001642]
[1728677536894,0.31989301,63024.0,63023.0,0.006642]
[1728677537879,0.46703982,63024.0,63023.0,0.006642]
[1728677538357,0.81638663,63024.0,63023.0,0.007642]
[1728677538832,0.81638663,63024.0,63023.0,0.006642]
[1728677538833,0.66923982,63024.0,63023.0,0.006642]
[1728677539067,0.66923982,63024.0,63023.0,0.001642]
[1728677539288,0.66923982,63024.0,63023.0,0.005642]
[1728677539537,0.67023982,63024.0,63023.0,0.005642]
[1728677539800,0.66923982,63024.0,63023.0,0.001642]
[1728677540027,0.67623982,63024.0,63023.0,0.003642]
[1728677540959,0.8171686,63024.0,63023.0,0.003642]
[1728677541211,0.67623982,63024.0,63023.0,0.003642]
[1728677545545,0.92888663,63024.0,63023.0,0.003642]
[1728677546006,0.77973982,63024.0,63023.0,0.003642]
[1728677546845,0.63259301,63024.0,63023.0,0.003642]
[1728677547048,0.77973982,63024.0,63023.0,0.003642]
[1728677547669,0.91940015,63024.0,63023.0,0.003642]
[1728677548581,0.77973982,63024.0,63023.0,0.003642]
[1728677549647,0.005,63023.0,63006.0,0.231382]
[1728677549859,0.158704,63011.0,63006.0,0.231382]
[1728677550131,0.158704,63011.0,63007.0,0.01053369]
[1728677550767,0.158712,63007.0,63006.0,0.072668]
[1728677550976,0.09913211,63008.0,63006.0,0.073668]
[1728677551181,0.25784211,63008.0,63006.0,0.073668]
[1728677551382,0.25784211,63008.0,63006.0,0.072668]
[1728677551588,0.25784211,63008.0,63007.0,0.01053369]
[1728677551793,0.25784211,63008.0,63007.0,0.01553369]
[1728677552245,0.25784211,63008.0,63007.0,0.01053369]
[1728677552753,0.15871,63008.0,63007.0,0.01053369]
[1728677553260,0.001,63008.0,63007.0,0.01853369]
[1728677553524,0.001,63008.0,63007.0,0.54225665]
[1728677553782,0.23664158,63022.0,63018.0,0.332884]
[1728677554252,0.23664158,63022.0,63018.0,0.1742]
[1728677554493,0.23664158,63022.0,63021.0,0.158677]
[1728677554719,0.158667,63025.0,63019.0,0.317364]
[1728677554968,0.158667,63025.0,63020.0,0.158679]
[1728677554969,0.31989101,63025.0,63020.0,0.158679]
[1728677555221,0.16122401,63025.0,63018.0,0.1792]
[1728677555467,0.158673,63023.0,63019.0,0.158682]
[1728677555701,0.31989301,63025.0,63019.0,0.158682]
[1728677555940,0.15867,63024.0,63019.0,0.158682]
[1728677556183,0.15867,63024.0,63020.0,0.158678]
[1728677556426,0.15867,63024.0,63021.0,0.002]
[1728677557369,0.158673,63023.0,63021.0,0.002]
[1728677557681,0.157673,63023.0,63019.0,0.158682]
[1728677558028,0.317344,63023.0,63018.0,0.0812]
[1728677558275,0.158682,63019.0,63015.0,0.158692]
[1728677558777,0.158682,63019.0,63016.0,0.01039254]
[1728677559460,0.158682,63019.0,63015.0,0.162692]
[1728677559693,0.317357,63021.0,63015.0,0.162692]
[1728677559927,0.158679,63020.0,63016.0,0.17308054]
[1728677560786,0.23664158,63022.0,63014.0,0.0812]
[1728677561027,0.158679,63021.0,63016.0,0.162689]
[1728677561265,0.158681,63020.0,63016.0,0.165689]
[1728677561494,0.158681,63020.0,63016.0,0.161689]
[1728677561725,0.158681,63020.0,63016.0,0.164689]
[1728677562393,0.15868,63020.0,63017.0,0.158687]
[1728677562648,0.15868,63020.0,63016.0,0.005]
[1728677562888,0.15868,63020.0,63016.0,0.003]
[1728677563134,0.158684,63019.0,63016.0,0.01339254]
[1728677563326,0.158684,63019.0,63016.0,0.17208154]
[1728677564087,0.158684,63019.0,63017.0,0.003]
[1728677564563,0.158684,63019.0,63016.0,0.162689]
[1728677564793,0.158684,63019.0,63016.0,0.166689]
[1728677565016,0.158684,63019.0,63016.0,0.17708154]
[1728677565242,0.158684,63019.0,63016.0,0.17308154]
[1728677565480,0.317357,63021.0,63017.0,0.004]
[1728677565740,0.158682,63019.0,63017.0,0.004]
[1728677565966,0.158682,63019.0,63017.0,0.008]
[1728677566427,0.158682,63019.0,63017.0,0.004]
[1728677566900,0.317357,63021.0,63016.0,0.158689]
[1728677567146,0.158681,63020.0,63017.0,0.004]
[1728677568349,0.158681,63020.0,63017.0,0.008]
[1728677568571,0.158681,63020.0,63017.0,0.004]
[1728677569541,0.158681,63020.0,63017.0,0.007]
[1728677569761,0.23664158,63022.0,63017.0,0.007]
[1728677569762,0.23664158,63022.0,63017.0,0.003]
[1728677569999,0.158682,63019.0,63017.0,0.006]
[1728677570858,0.158682,63019.0,63017.0,0.003]
[1728677571722,0.158682,63019.0,63017.0,0.001]
[1728677571938,0.158682,63019.0,63017.0,0.002]
[1728677572356,0.158682,63019.0,63017.0,0.001]
[1728677572567,0.158682,63019.0,63017.0,0.005]
[1728677573054,0.158682,63019.0,63017.0,0.004]
[1728677573279,0.158682,63019.0,63017.0,0.008]
[1728677574051,0.158684,63018.0,63017.0,0.008]
[1728677574474,0.158684,63018.0,63017.0,0.00791243]
[1728677574919,0.158684,63018.0,63017.0,0.00391243]
[1728677575363,0.158687,63017.0,63016.0,0.000821]
[1728677576027,0.55655259,63017.0,63016.0,0.000821]
[1728677576227,0.31991101,63017.0,63016.0,0.000821]
[1728677576465,0.34291101,63017.0,63016.0,0.000821]
[1728677576701,0.44291101,63017.0,63016.0,0.006821]
[1728677577091,0.44291101,63017.0,63016.0,0.013821]
[1728677577709,0.44291101,63017.0,63016.0,0.006821]
[1728677577911,0.44291101,63017.0,63016.0,0.008821]
[1728677578349,0.44291101,63017.0,63016.0,0.002821]
[1728677578782,0.44291101,63017.0,63016.0,0.004821]
[1728677579374,0.44291101,63017.0,63016.0,0.002821]
[1728677579570,0.44391101,63017.0,63016.0,0.002821]
[1728677581418,0.59111581,63017.0,63016.0,0.002821]
[1728677584127,0.82775739,63017.0,63016.0,0.002821]
[1728677584364,0.85098552,63017.0,63016.0,0.002821]
[1728677584575,0.93618552,63017.0,63016.0,0.002821]
[1728677585401,0.93618552,63017.0,63016.0,0.000821]
[1728677585561,0.93418552,63017.0,63016.0,0.001821]
[1728677585972,0.93318552,63017.0,63016.0,0.000821]
[1728677586178,0.94118552,63017.0,63016.0,0.002821]
[1728677586605,0.93518552,63017.0,63016.0,0.001821]
[1728677586803,0.96003021,63017.0,63016.0,0.001821]
[1728677587008,0.96003021,63017.0,63016.0,0.002821]
[1728677587225,0.96603021,63017.0,63016.0,0.002821]
[1728677588129,0.8046605,63017.0,63016.0,0.002821]
[1728677588336,0.85203419,63017.0,63016.0,0.002821]
[1728677589576,0.8046605,63017.0,63016.0,0.002821]
[1728677589863,0.87569871,63017.0,63016.0,0.002821]
[1728677590935,0.87568487,63017.0,63016.0,0.002821]
[1728677591153,0.7570216,63007.0,63006.0,0.000821]
[1728677591343,0.92024561,63007.0,63006.0,0.000821]
[1728677591996,0.68824081,63007.0,63006.0,0.000821]
[1728677592214,0.56714081,63007.0,63006.0,0.000821]
[1728677592427,0.41993601,63007.0,63006.0,0.000821]
[1728677592647,0.42193601,63007.0,63006.0,0.000821]
[1728677592862,0.42493601,63007.0,63006.0,0.000821]
[1728677593275,0.42693601,63007.0,63006.0,0.000821]
[1728677593483,0.42293601,63007.0,63006.0,0.000821]
[1728677593900,0.42493601,63007.0,63006.0,0.000821]
[1728677597031,0.42493601,63007.0,63006.0,8.76e-06]
[1728677603746,0.163712,63007.0,63006.0,8.76e-06]
[1728677605251,0.163712,63007.0,63006.0,0.01055813]
[1728677605462,0.163712,63007.0,63006.0,8.76e-06]
[1728677605678,0.163712,63007.0,63006.0,0.01055813]
[1728677605894,0.163712,63007.0,63006.0,8.76e-06]
[1728677606342,0.163712,63007.0,63006.0,0.01055813]
[1728677606557,0.163712,63007.0,63006.0,8.76e-06]
[1728677607020,0.163712,63007.0,63006.0,0.01055813]
[1728677607671,0.160712,63007.0,63006.0,0.01055813]
[1728677608089,0.164712,63007.0,63006.0,0.01055813]
[1728677608522,0.160712,63007.0,63006.0,0.01055813]
[1728677609171,0.158712,63007.0,63006.0,0.01055813]
[1728677609375,0.159712,63007.0,63006.0,0.01055813]
[1728677609605,0.163712,63007.0,63006.0,0.01055813]
[1728677609809,0.159712,63007.0,63006.0,0.01055813]
[1728677610227,0.161712,63007.0,63006.0,0.01055813]
[1728677610859,0.161712,63007.0,63006.0,8.76e-06]
[1728677611523,0.161712,63007.0,63006.0,0.01055813]
[1728677611766,0.161712,63007.0,63006.0,8.76e-06]
[1728677612178,0.161712,63007.0,63006.0,0.01055813]
[1728677612387,9.161712,63007.0,63006.0,8.76e-06]
[1728677617675,9.163354,63007.0,63006.0,8.76e-06]
[1728677618778,0.15872,63004.0,63002.0,0.07160876]
[1728677619218,0.158721,63004.0,63002.0,0.07160876]
[1728677620332,0.158721,63004.0,63002.0,0.07260876]
[1728677620548,0.158721,63004.0,63002.0,0.07360876]
[1728677622208,0.317436,63005.0,63002.0,0.07360876]
[1728677622354,0.158722,63003.0,63002.0,0.07360876]
[1728677622983,0.158722,63003.0,63002.0,0.07260876]
[1728677623186,0.158722,63003.0,63002.0,0.07160876]
[1728677623854,0.158722,63003.0,63002.0,0.07360876]
[1728677624282,0.158722,63003.0,63002.0,0.07560876]
[1728677629636,0.41909314,63003.0,63002.0,0.004]
[1728677629852,0.41909314,63003.0,63002.0,0.004821]
[1728677629853,0.51824027,63003.0,63002.0,0.004821]
[1728677630078,0.63454027,63003.0,63002.0,0.004821]
[1728677630312,0.53539314,63003.0,63002.0,0.004821]
[1728677630536,0.53539314,63003.0,63002.0,0.002821]
[1728677630973,0.53739314,63003.0,63002.0,0.002821]
[1728677631431,0.53539314,63003.0,63002.0,0.002821]
[1728677631854,0.53539314,63003.0,63002.0,0.000821]
[1728677632067,0.58482619,63003.0,63002.0,0.000821]
[1728677632524,0.53739314,63003.0,63002.0,0.000821]
[1728677632756,0.54939314,63003.0,63002.0,0.002821]
[1728677641243,0.52639314,63003.0,63002.0,0.002821]
[1728677641721,0.52803514,63003.0,63002.0,0.002821]
[1728677651721,0.89540485,63003.0,63002.0,0.002821]
[1728677651932,0.73403514,63003.0,63002.0,0.002821]
[1728677652370,0.83318227,63003.0,63002.0,0.002821]
[1728677652579,0.83418227,63003.0,63002.0,0.002821]
[1728677652788,0.83318227,63003.0,63002.0,0.002821]
[1728677652999,1.04198711,63003.0,63002.0,0.002821]
[1728677653435,1.04198711,63003.0,62998.0,0.001642]
[1728677653436,0.286732,62999.0,62998.0,0.001642]
[1728677653655,0.84585204,62999.0,62998.0,0.001642]
[1728677653861,0.9406284,62999.0,62998.0,0.001642]
[1728677654079,0.84785204,62999.0,62998.0,0.001642]
[1728677654346,1.10199673,62999.0,62998.0,0.001642]
[1728677654570,0.95626989,62999.0,62998.0,0.001642]
[1728677655184,0.79990018,62999.0,62998.0,0.002642]
[1728677655598,0.88966034,62999.0,62998.0,0.001642]
[1728677655805,0.90866034,62999.0,62998.0,0.003642]
[1728677657730,0.81390018,62999.0,62998.0,0.003642]
[1728677658569,0.88493739,62999.0,62998.0,0.003642]
[1728677658780,0.97526989,62999.0,62998.0,0.003642]
[1728677658993,1.07003005,62999.0,62998.0,0.003642]
[1728677659644,0.97526989,62999.0,62998.0,0.003642]
[1728677660071,1.04629142,62999.0,62998.0,0.003642]
[1728677660501,1.06996526,62999.0,62998.0,0.003642]
[1728677661459,0.97526989,62999.0,62998.0,0.003642]
[1728677661877,0.97726989,62999.0,62998.0,0.003642]
[1728677662917,0.97526989,62999.0,62998.0,0.003642]
[1728677663343,0.81390018,62999.0,62998.0,0.003642]
[1728677663564,0.66655778,62999.0,62998.0,0.003642]
[1728677663768,0.70790018,62999.0,62998.0,0.003642]
[1728677664869,0.75523024,62999.0,62998.0,0.003642]
[1728677665082,0.77823024,62999.0,62998.0,0.003642]
[1728677665294,0.94159995,62999.0,62998.0,0.003642]
[1728677665705,0.92089818,62999.0,62998.0,0.003642]
[1728677665911,0.91889818,62999.0,62998.0,0.003642]
[1728677666315,0.92089818,62999.0,62998.0,0.003642]
[1728677666516,0.87356812,62999.0,62998.0,0.003642]
[1728677666720,0.92089806,62999.0,62998.0,0.003642]
[1728677667126,0.87356812,62999.0,62998.0,0.003642]
[1728677668122,0.92089806,62999.0,62998.0,0.003642]
[1728677668271,0.87356812,62999.0,62998.0,0.003642]
[1728677668887,0.92089806,62999.0,62998.0,0.003642]
[1728677670159,1.01425806,62999.0,62998.0,0.003642]
[1728677670612,1.03792322,62999.0,62998.0,0.003642]
[1728677672551,1.06158825,62999.0,62998.0,0.003642]
[1728677673177,1.06358825,62999.0,62998.0,0.003642]
[1728677673377,1.06158825,62999.0,62998.0,0.003642]
[1728677673595,0.96692812,62999.0,62998.0,0.003642]
[1728677674505,1.01804514,62999.0,62998.0,0.003642]
[1728677674704,0.85867543,62999.0,62998.0,0.003642]
[1728677674933,1.05730059,62999.0,62998.0,0.003642]
[1728677675609,0.93897543,62999.0,62998.0,0.003642]
[1728677680263,0.93878369,62999.0,62998.0,0.003642]
[1728677683618,1.1001534,62999.0,62998.0,0.003642]
[1728677685124,0.93878369,62999.0,62998.0,0.003642]
[1728677685769,1.05336359,62999.0,62998.0,0.003642]
[1728677686011,0.87770359,62999.0,62998.0,0.003642]
[1728677686252,0.54117437,62999.0,62998.0,0.003642]
[1728677686465,0.64040408,62999.0,62998.0,0.003642]
[1728677686677,0.71144304,62999.0,62998.0,0.003642]
[1728677686860,0.64040408,62999.0,62998.0,0.003642]
[1728677687015,0.71144387,62999.0,62998.0,0.003642]
[1728677687481,0.66340408,62999.0,62998.0,0.003642]
[1728677687700,0.56417437,62999.0,62998.0,0.003642]
[1728677687887,0.66340408,62999.0,62998.0,0.003642]
[1728677688313,0.75812192,62999.0,62998.0,0.003642]
[1728677688487,0.7581493,62999.0,62998.0,0.003642]
[1728677690291,0.66340408,62999.0,62998.0,0.003642]
[1728677691335,0.7818356,62999.0,62998.0,0.003642]
[1728677693339,0.78190402,62999.0,62998.0,0.003642]
[1728677693518,0.66340408,62999.0,62998.0,0.003642]
[1728677694540,0.46494466,62999.0,62998.0,0.003642]
[1728677694748,0.78194359,62999.0,62998.0,0.003642]
[1728677695417,0.66340408,62999.0,62998.0,0.003642]
[1728677698850,0.66504608,62999.0,62998.0,0.003642]
[1728677702128,0.46658666,62999.0,62998.0,0.003642]
[1728677702373,0.66504608,62999.0,62998.0,0.003642]
[1728677703401,0.68989563,62999.0,62998.0,0.003642]
[1728677704787,0.68989563,62999.0,62998.0,0.00066732]
[1728677709617,0.85126534,62999.0,62998.0,0.00066732]
[1728677710122,0.68989563,62999.0,62998.0,0.00066732]
[1728677711047,0.68989563,62999.0,62998.0,0.00148832]
[1728677713805,0.59066592,62999.0,62998.0,0.00148832]
[1728677714012,0.68989563,62999.0,62998.0,0.00148832]
[1728677714892,0.60709252,62999.0,62998.0,0.08368832]
[1728677715117,0.56036655,62999.0,62998.0,0.08368832]
[1728677715322,0.34059801,62999.0,62998.0,0.08368832]
[1728677715526,0.38805087,62999.0,62998.0,0.08368832]
[1728677715929,0.38305087,62999.0,62998.0,0.083021]
[1728677716556,0.38205087,62999.0,62998.0,0.084021]
[1728677716757,0.48205087,62999.0,62998.0,0.084021]
[1728677716935,0.49605087,62999.0,62998.0,0.085021]
[1728677717135,0.48205087,62999.0,62998.0,0.084021]
[1728677717461,0.44459801,62999.0,62998.0,0.085021]
[1728677717842,0.43159801,62999.0,62998.0,0.084021]
[1728677718040,0.44059801,62999.0,62998.0,0.085021]
[1728677721308,0.44059801,62999.0,62998.0,0.184621]
[1728677721949,0.020642,62999.0,62998.0,0.40154252]
[1728677722168,0.020642,62999.0,62998.0,0.46305916]
[1728677722379,0.020642,62999.0,62998.0,0.47373402]
[1728677722797,0.001642,62999.0,62998.0,0.47173402]
[1728677723006,0.003642,62999.0,62998.0,0.47173402]
[1728677723217,0.003642,62999.0,62998.0,0.45327192]
[1728677723432,0.001642,62999.0,62998.0,0.45327192]
[1728677723638,0.001642,62999.0,62998.0,0.45727192]
[1728677724061,0.002642,62999.0,62998.0,0.35804221]
[1728677724724,0.001642,62999.0,62998.0,0.35804221]
[1728677724925,0.001642,62999.0,62998.0,0.36204221]
[1728677725439,0.001642,62999.0,62998.0,0.35804221]
[1728677725877,0.002642,62999.0,62998.0,0.36804221]
[1728677726303,0.002642,62999.0,62998.0,0.36404221]
[1728677726727,0.003642,62999.0,62998.0,0.37404221]
[1728677727360,0.003642,62999.0,62998.0,0.63449593]
[1728677727568,0.003642,62999.0,62998.0,0.64149593]
[1728677727774,0.001642,63002.0,63001.0,0.16073835]
[1728677727981,0.001642,63002.0,63001.0,0.59849207]
[1728677728809,0.001642,63002.0,63001.0,0.60049207]
[1728677729239,0.001642,63002.0,63001.0,0.59849207]
[1728677729412,0.001642,63002.0,63001.0,0.60349207]
[1728677729612,0.002642,63002.0,63001.0,0.61049207]
[1728677730055,0.002642,63002.0,63001.0,0.61749207]
[1728677730056,0.003642,63002.0,63001.0,0.61749207]
[1728677735528,0.003642,63002.0,63001.0,0.62325444]
[1728677737590,0.003642,63002.0,63001.0,0.62525444]